[Event "*** Titled Tuesday 3|2 Blitz"]
[Site "Chess.com"]
[Date "2016.10.04"]
[Round "9"]
[White "NTBT_DHS"]
[Black "Gordima"]
[Result "0-1"]
[WhiteElo "2453"]
[BlackElo "2561"]
[TimeControl "180+2"]
[EndTime "12:53:49 PDT"]
[Termination "Gordima won by resignation"]

1. d4 {[%clk 0:02:59.4]} 1... Nf6 {[%clk 0:03:00.8]} 2. c4 {[%clk 0:03:00.8]}
2... g6 {[%clk 0:03:01.9]} 3. Nc3 {[%clk 0:03:01.7]} 3... d5 {[%clk 0:03:03]} 4.
e3 {[%clk 0:02:51.7]} 4... Bg7 {[%clk 0:03:03.7]} 5. Nge2 {[%clk 0:02:53.1]}
5... dxc4 {[%clk 0:02:55.8]} 6. Nf4 {[%clk 0:02:54.2]} 6... O-O {[%clk
0:02:54.2]} 7. Bxc4 {[%clk 0:02:55.3]} 7... Nbd7 {[%clk 0:02:47.4]} 8. Bxf7+
{[%clk 0:02:37.8]} 8... Rxf7 {[%clk 0:02:39.5]} 9. Ne6 {[%clk 0:02:38.9]} 9...
Qe8 {[%clk 0:02:40.3]} 10. Nxc7 {[%clk 0:02:38.9]} 10... Qd8 {[%clk 0:02:41.6]}
11. Nxa8 {[%clk 0:02:35.7]} 11... b6 {[%clk 0:02:33.5]} 12. Qf3 {[%clk
0:02:31.8]} 12... e5 {[%clk 0:01:59.5]} 13. O-O {[%clk 0:02:16.6]} 13... e4
{[%clk 0:01:54.1]} 14. Nxe4 {[%clk 0:02:16.8]} 14... Bb7 {[%clk 0:01:55.1]} 15.
Nxf6+ {[%clk 0:02:14.6]} 15... Nxf6 {[%clk 0:01:56.4]} 16. Qe2 {[%clk
0:02:10.1]} 16... Qxa8 {[%clk 0:01:53.9]} 17. f3 {[%clk 0:02:11.2]} 17... a5
{[%clk 0:01:46.8]} 18. Rd1 {[%clk 0:02:05.7]} 18... g5 {[%clk 0:01:41.6]} 19. e4
{[%clk 0:02:04.2]} 19... g4 {[%clk 0:01:42.9]} 20. d5 {[%clk 0:02:03.7]} 20...
Ba6 {[%clk 0:01:31.2]} 21. Qe3 {[%clk 0:01:22.1]} 21... gxf3 {[%clk 0:01:31.1]}
22. gxf3 {[%clk 0:01:22.1]} 22... Nd7 {[%clk 0:00:54.7]} 23. Kh1 {[%clk
0:00:56.3]} 23... Ne5 {[%clk 0:00:50.2]} 24. f4 {[%clk 0:00:53]} 24... Ng4
{[%clk 0:00:39]} 25. Qf3 {[%clk 0:00:39.3]} 25... h5 {[%clk 0:00:13.4]} 26. h3
{[%clk 0:00:39.1]} 26... Ne5 {[%clk 0:00:07.2]} 27. Qxh5 {[%clk 0:00:40.3]}
27... Qc8 {[%clk 0:00:07.9]} 28. fxe5 {[%clk 0:00:32.3]} 28... Be2 {[%clk
0:00:09]} 29. Qxe2 {[%clk 0:00:25.9]} 29... Qxh3+ {[%clk 0:00:10]} 30. Kg1
{[%clk 0:00:27.4]} 30... Rf3 {[%clk 0:00:08.5]} 31. Qg2 {[%clk 0:00:23.5]} 31...
Rg3 {[%clk 0:00:09.4]} 32. Rd2 {[%clk 0:00:25.2]} 32... Bxe5 {[%clk 0:00:10.1]}
33. Kf1 {[%clk 0:00:18.7]} 33... Rxg2 {[%clk 0:00:09.3]} 34. Rxg2+ {[%clk
0:00:20.3]} 34... Kh7 {[%clk 0:00:10.3]} 35. Bd2 {[%clk 0:00:20.3]} 35... Qf3+
{[%clk 0:00:11.2]} 36. Kg1 {[%clk 0:00:18.1]} 36... Bd4+ {[%clk 0:00:12.1]} 37.
Kh2 {[%clk 0:00:19.3]} 37... Be5+ {[%clk 0:00:05.2]} 38. Kg1 {[%clk 0:00:20.8]}
38... Bd4+ {[%clk 0:00:06.5]} 39. Kh1 {[%clk 0:00:22.4]} 39... Qxe4 {[%clk
0:00:04.3]} 40. d6 {[%clk 0:00:20.8]} 40... Be5 {[%clk 0:00:04.2]} 41. Re1
{[%clk 0:00:18.7]} 41... Qh4+ {[%clk 0:00:05.3]} 42. Kg1 {[%clk 0:00:19.8]}
42... Bd4+ {[%clk 0:00:06.7]} 43. Re3 {[%clk 0:00:19.2]} 43... Bxe3+ {[%clk
0:00:07.1]} 44. Bxe3 {[%clk 0:00:20.3]} 44... Qe1+ {[%clk 0:00:08.8]} 45. Kh2
{[%clk 0:00:21.6]} 45... Qxe3 {[%clk 0:00:10.2]} 46. Rg3 {[%clk 0:00:23.2]}
46... Qd2+ {[%clk 0:00:11.2]} 47. Kh3 {[%clk 0:00:24.4]} 47... Qxd6 {[%clk
0:00:12.3]} 48. b3 {[%clk 0:00:25]} 48... Qd2 {[%clk 0:00:11.8]} 49. a4 {[%clk
0:00:26.1]} 49... Kh6 {[%clk 0:00:04]} 50. Kh4 {[%clk 0:00:18.4]} 50... Qf4+
{[%clk 0:00:04]} 51. Kh3 {[%clk 0:00:18.9]} 51... Kh5 {[%clk 0:00:05.4]} 52. Kg2
{[%clk 0:00:16.7]} 52... Kh4 {[%clk 0:00:06.7]} 53. Rf3 {[%clk 0:00:16.3]} 53...
Qe4 {[%clk 0:00:08.1]} 54. Kf2 {[%clk 0:00:16.6]} 54... Kg4 {[%clk 0:00:09.7]}
55. Re3 {[%clk 0:00:18.2]} 55... Qd4 {[%clk 0:00:11.2]} 56. Ke2 {[%clk
0:00:19.8]} 56... Kf4 {[%clk 0:00:12.6]} 57. Rd3 {[%clk 0:00:20]} 57... Qb2+
{[%clk 0:00:14.2]} 58. Kd1 {[%clk 0:00:20.6]} 58... Ke4 {[%clk 0:00:15.1]} 59.
Rh3 {[%clk 0:00:19.2]} 59... Kd4 {[%clk 0:00:15]} 60. Rg3 {[%clk 0:00:17.4]}
60... Qf2 {[%clk 0:00:15.3]} 61. Rg4+ {[%clk 0:00:12.6]} 61... Kc3 {[%clk
0:00:16.7]} 62. Re4 {[%clk 0:00:05.9]} 62... Qf1+ {[%clk 0:00:15.5]} 63. Re1
{[%clk 0:00:06.6]} 63... Qd3+ {[%clk 0:00:16.8]} 0-1

[Event "*** Titled Tuesday 3|2 Blitz"]
[Site "Chess.com"]
[Date "2016.10.04"]
[Round "9"]
[White "Dale"]
[Black "petrpalachev"]
[Result "0-1"]
[WhiteElo "2083"]
[BlackElo "2417"]
[TimeControl "180+2"]
[EndTime "12:54:21 PDT"]
[Termination "petrpalachev won by checkmate"]

1. Nc3 {[%clk 0:03:01.9]} 1... d5 {[%clk 0:03:00.7]} 2. e3 {[%clk 0:03:02.4]}
2... Nf6 {[%clk 0:03:00.6]} 3. Nf3 {[%clk 0:03:01.7]} 3... g6 {[%clk 0:03:00.3]}
4. b3 {[%clk 0:03:00.7]} 4... Bg7 {[%clk 0:03:01.8]} 5. Bb2 {[%clk 0:03:01.8]}
5... O-O {[%clk 0:03:03.7]} 6. h3 {[%clk 0:02:54.5]} 6... c5 {[%clk 0:03:04.6]}
7. g4 {[%clk 0:02:50.8]} 7... Ne4 {[%clk 0:03:02.5]} 8. Na4 {[%clk 0:02:47.8]}
8... Bxb2 {[%clk 0:02:55.9]} 9. Nxb2 {[%clk 0:02:48.5]} 9... Nc6 {[%clk
0:02:57.8]} 10. c4 {[%clk 0:02:46.5]} 10... d4 {[%clk 0:02:57.3]} 11. Bg2 {[%clk
0:02:41.9]} 11... e5 {[%clk 0:02:45.6]} 12. Nxd4 {[%clk 0:02:15.7]} 12... Nxf2
{[%clk 0:02:40]} 13. Nxc6 {[%clk 0:02:15]} 13... Qh4 {[%clk 0:02:35.8]} 14. Ne7+
{[%clk 0:02:14.8]} 14... Kh8 {[%clk 0:02:29]} 15. Qf3 {[%clk 0:02:14.8]} 15...
Nxh1+ {[%clk 0:02:26.1]} 16. Kf1 {[%clk 0:01:59.2]} 16... Ng3+ {[%clk
0:02:25.2]} 17. Kg1 {[%clk 0:01:51.4]} 17... Qxe7 {[%clk 0:02:09.7]} 18. Qxg3
{[%clk 0:01:49.7]} 18... Rd8 {[%clk 0:01:55.3]} 19. d3 {[%clk 0:01:43.5]} 19...
Rb8 {[%clk 0:01:43.5]} 20. Rf1 {[%clk 0:01:43.2]} 20... f5 {[%clk 0:01:35.8]}
21. Bd5 {[%clk 0:01:38.4]} 21... Bd7 {[%clk 0:01:17.6]} 22. d4 {[%clk
0:01:30.7]} 22... cxd4 {[%clk 0:01:17.2]} 23. exd4 {[%clk 0:01:31.7]} 23... exd4
{[%clk 0:01:12.9]} 24. Re1 {[%clk 0:01:31.1]} 24... Qg7 {[%clk 0:00:55.1]} 25.
Nd3 {[%clk 0:01:27.9]} 25... fxg4 {[%clk 0:00:54.6]} 26. Ne5 {[%clk 0:01:24.2]}
26... Be8 {[%clk 0:00:38.9]} 27. Nxg4 {[%clk 0:01:23.9]} 27... Bc6 {[%clk
0:00:35.7]} 28. Be6 {[%clk 0:01:03.7]} 28... Bd7 {[%clk 0:00:21.3]} 29. Bd5
{[%clk 0:00:59.3]} 29... Bxg4 {[%clk 0:00:21.7]} 30. hxg4 {[%clk 0:00:56.8]}
30... Re8 {[%clk 0:00:22.5]} 31. Rf1 {[%clk 0:00:55.8]} 31... Rf8 {[%clk
0:00:23.2]} 32. Rd1 {[%clk 0:00:54.6]} 32... Rbe8 {[%clk 0:00:23.2]} 33. g5
{[%clk 0:00:54.7]} 33... Qe5 {[%clk 0:00:21.6]} 34. Qxe5+ {[%clk 0:00:54.3]}
34... Rxe5 {[%clk 0:00:23.5]} 35. Rxd4 {[%clk 0:00:55.1]} 35... Rxg5+ {[%clk
0:00:24.4]} 36. Kh2 {[%clk 0:00:56]} 36... Rf2+ {[%clk 0:00:23.6]} 37. Kh3
{[%clk 0:00:54.3]} 37... b6 {[%clk 0:00:24.6]} 38. b4 {[%clk 0:00:51.3]} 38...
Rxa2 {[%clk 0:00:23.7]} 39. c5 {[%clk 0:00:52.5]} 39... Rc2 {[%clk 0:00:20.8]}
40. c6 {[%clk 0:00:51.6]} 40... Rxd5 {[%clk 0:00:19.4]} 41. Rxd5 {[%clk
0:00:51.9]} 41... Rxc6 {[%clk 0:00:20.6]} 42. Rd7 {[%clk 0:00:51]} 42... a5
{[%clk 0:00:20.8]} 43. bxa5 {[%clk 0:00:49.5]} 43... bxa5 {[%clk 0:00:22.7]} 44.
Ra7 {[%clk 0:00:50.4]} 44... Rc5 {[%clk 0:00:24]} 45. Kg4 {[%clk 0:00:51.2]}
45... Rf5 {[%clk 0:00:21.5]} 46. Kh4 {[%clk 0:00:50.9]} 46... Kg8 {[%clk
0:00:19.8]} 47. Kg4 {[%clk 0:00:51.9]} 47... h6 {[%clk 0:00:20.5]} 48. Kh4
{[%clk 0:00:52.9]} 48... h5 {[%clk 0:00:19]} 49. Kg3 {[%clk 0:00:50.2]} 49... g5
{[%clk 0:00:19.5]} 50. Kh3 {[%clk 0:00:49]} 50... Rb5 {[%clk 0:00:17]} 51. Kg3
{[%clk 0:00:49.4]} 51... Rb3+ {[%clk 0:00:17.8]} 52. Kg2 {[%clk 0:00:49.9]}
52... Rb5 {[%clk 0:00:15.4]} 53. Kg3 {[%clk 0:00:50.5]} 53... Kf8 {[%clk
0:00:05.5]} 54. Kf3 {[%clk 0:00:49.6]} 54... g4+ {[%clk 0:00:06.5]} 55. Kg3
{[%clk 0:00:50]} 55... Ke8 {[%clk 0:00:08.1]} 56. Kh4 {[%clk 0:00:45.9]} 56...
Kd8 {[%clk 0:00:09.2]} 57. Rh7 {[%clk 0:00:44.9]} 57... Kc8 {[%clk 0:00:09.4]}
58. Kg3 {[%clk 0:00:40.7]} 58... Kb8 {[%clk 0:00:08.9]} 59. Kf4 {[%clk 0:00:39]}
59... a4 {[%clk 0:00:09.6]} 60. Rh6 {[%clk 0:00:34.7]} 60... Kb7 {[%clk
0:00:09.9]} 61. Ke3 {[%clk 0:00:31.2]} 61... a3 {[%clk 0:00:10.5]} 62. Rh7+
{[%clk 0:00:31.1]} 62... Kb6 {[%clk 0:00:11.8]} 63. Rh8 {[%clk 0:00:29.4]} 63...
Ra5 {[%clk 0:00:12]} 64. Rb8+ {[%clk 0:00:29.5]} 64... Kc7 {[%clk 0:00:13.1]}
65. Rb1 {[%clk 0:00:30.1]} 65... a2 {[%clk 0:00:14.4]} 66. Ra1 {[%clk
0:00:31.3]} 66... h4 {[%clk 0:00:14.8]} 67. Kf4 {[%clk 0:00:32.1]} 67... Ra4+
{[%clk 0:00:16.1]} 68. Kg5 {[%clk 0:00:33.1]} 68... h3 {[%clk 0:00:17.5]} 69.
Kh4 {[%clk 0:00:34.3]} 69... h2 {[%clk 0:00:18.7]} 70. Kg3 {[%clk 0:00:35.4]}
70... h1=Q {[%clk 0:00:20.2]} 71. Rxh1 {[%clk 0:00:30.5]} 71... a1=Q {[%clk
0:00:21.3]} 72. Rh7+ {[%clk 0:00:29.8]} 72... Kd6 {[%clk 0:00:22.3]} 73. Rh6+
{[%clk 0:00:25.2]} 73... Ke5 {[%clk 0:00:23.6]} 74. Rh5+ {[%clk 0:00:22.9]}
74... Kf6 {[%clk 0:00:24.7]} 75. Rh6+ {[%clk 0:00:21.9]} 75... Kg5 {[%clk
0:00:25.3]} 76. Rh1 {[%clk 0:00:17.6]} 76... Qxh1 {[%clk 0:00:23.3]} 77. Kf2
{[%clk 0:00:18.5]} 77... Qf3+ {[%clk 0:00:23.6]} 78. Ke1 {[%clk 0:00:18.2]}
78... Qg2 {[%clk 0:00:24.4]} 79. Kd1 {[%clk 0:00:18.3]} 79... Ra1# {[%clk
0:00:26.1]} 0-1

[Event "*** Titled Tuesday 3|2 Blitz"]
[Site "Chess.com"]
[Date "2016.10.04"]
[Round "9"]
[White "wonderfultime"]
[Black "hansen"]
[Result "1/2-1/2"]
[WhiteElo "2698"]
[BlackElo "2637"]
[TimeControl "180+2"]
[EndTime "12:54:23 PDT"]
[Termination "Game drawn by stalemate"]

1. d4 {[%clk 0:03:01.9]} 1... Nf6 {[%clk 0:02:52.1]} 2. c4 {[%clk 0:03:03]} 2...
g6 {[%clk 0:02:52.7]} 3. Nc3 {[%clk 0:03:04]} 3... d5 {[%clk 0:02:53.4]} 4. cxd5
{[%clk 0:03:05.3]} 4... Nxd5 {[%clk 0:02:53.7]} 5. e4 {[%clk 0:03:07]} 5... Nxc3
{[%clk 0:02:52]} 6. bxc3 {[%clk 0:03:08.9]} 6... Bg7 {[%clk 0:02:53.6]} 7. Qa4+
{[%clk 0:03:10]} 7... c6 {[%clk 0:02:36.6]} 8. Nf3 {[%clk 0:03:09.5]} 8... O-O
{[%clk 0:02:36.7]} 9. Be2 {[%clk 0:03:09.5]} 9... Nd7 {[%clk 0:02:26.2]} 10. O-O
{[%clk 0:03:10.2]} 10... e5 {[%clk 0:02:10.4]} 11. Bg5 {[%clk 0:02:37.8]} 11...
Qc7 {[%clk 0:02:07.3]} 12. Rfe1 {[%clk 0:02:30.7]} 12... Re8 {[%clk 0:02:06.1]}
13. Qc2 {[%clk 0:02:23.4]} 13... exd4 {[%clk 0:01:33.9]} 14. cxd4 {[%clk
0:02:25.3]} 14... Nf6 {[%clk 0:01:35.1]} 15. Bc4 {[%clk 0:02:22]} 15... Be6
{[%clk 0:01:33.7]} 16. Bxe6 {[%clk 0:02:20.2]} 16... Rxe6 {[%clk 0:01:34.1]} 17.
d5 {[%clk 0:01:39]} 17... Ree8 {[%clk 0:01:34.6]} 18. Rad1 {[%clk 0:01:38.6]}
18... Qa5 {[%clk 0:01:27.1]} 19. d6 {[%clk 0:01:33.5]} 19... Nd7 {[%clk
0:01:23.5]} 20. h4 {[%clk 0:01:22.9]} 20... Qc3 {[%clk 0:00:46.4]} 21. Qb1
{[%clk 0:01:20.7]} 21... Rab8 {[%clk 0:00:39.3]} 22. Rd3 {[%clk 0:00:54]} 22...
Qc4 {[%clk 0:00:39.3]} 23. Be7 {[%clk 0:00:52.6]} 23... b5 {[%clk 0:00:24.2]}
24. e5 {[%clk 0:00:50.7]} 24... Nc5 {[%clk 0:00:20.7]} 25. Rd4 {[%clk
0:00:52.2]} 25... Qe6 {[%clk 0:00:18.6]} 26. Qc2 {[%clk 0:00:46.1]} 26... Nd7
{[%clk 0:00:11.2]} 27. Qxc6 {[%clk 0:00:42.5]} 27... Rxe7 {[%clk 0:00:11.9]} 28.
Ng5 {[%clk 0:00:39.4]} 28... Nxe5 {[%clk 0:00:07]} 29. Nxe6 {[%clk 0:00:30]}
29... Nxc6 {[%clk 0:00:06.4]} 30. dxe7 {[%clk 0:00:31.9]} 30... fxe6 {[%clk
0:00:07]} 31. Rd7 {[%clk 0:00:19.3]} 31... Re8 {[%clk 0:00:07.2]} 32. Rxe6
{[%clk 0:00:20]} 32... Nd4 {[%clk 0:00:07.6]} 33. Re4 {[%clk 0:00:20]} 33... a6
{[%clk 0:00:07.3]} 34. Ra7 {[%clk 0:00:17.2]} 34... Nf5 {[%clk 0:00:04.6]} 35.
Rxa6 {[%clk 0:00:17.7]} 35... Kf7 {[%clk 0:00:04.4]} 36. Rb6 {[%clk 0:00:18.6]}
36... Nd4 {[%clk 0:00:04.8]} 37. Rb7 {[%clk 0:00:19.8]} 37... h5 {[%clk
0:00:05.1]} 38. g3 {[%clk 0:00:19.7]} 38... Bf6 {[%clk 0:00:06.5]} 39. Kg2
{[%clk 0:00:18.7]} 39... Kg7 {[%clk 0:00:04.8]} 40. Kh3 {[%clk 0:00:18.2]} 40...
Kf7 {[%clk 0:00:05.8]} 41. g4 {[%clk 0:00:18.6]} 41... hxg4+ {[%clk 0:00:07.1]}
42. Kxg4 {[%clk 0:00:20.5]} 42... Nf5 {[%clk 0:00:08.7]} 43. Rb6 {[%clk
0:00:14.5]} 43... Nxh4 {[%clk 0:00:07.5]} 44. Rxb5 {[%clk 0:00:11.1]} 44... Nf5
{[%clk 0:00:08.5]} 45. Rb6 {[%clk 0:00:12.6]} 45... Bxe7 {[%clk 0:00:08]} 46.
Kf3 {[%clk 0:00:09.5]} 46... Ra8 {[%clk 0:00:08.7]} 47. a4 {[%clk 0:00:10.3]}
47... Ra5 {[%clk 0:00:09.3]} 48. Rb5 {[%clk 0:00:10.6]} 48... Ra6 {[%clk
0:00:10.3]} 49. Rb7 {[%clk 0:00:09.6]} 49... Kf6 {[%clk 0:00:11]} 50. Rb8 {[%clk
0:00:07.7]} 50... Bd6 {[%clk 0:00:11.9]} 51. Rbe8 {[%clk 0:00:08.3]} 51... Ra5
{[%clk 0:00:12.1]} 52. R8e6+ {[%clk 0:00:08.9]} 52... Kf7 {[%clk 0:00:13.3]} 53.
Kg2 {[%clk 0:00:10.8]} 53... Nh4+ {[%clk 0:00:13.4]} 54. Kf1 {[%clk 0:00:11.1]}
54... Nf5 {[%clk 0:00:14.6]} 55. Ke1 {[%clk 0:00:12.5]} 55... Bb4+ {[%clk
0:00:15]} 56. Kd1 {[%clk 0:00:13.5]} 56... Be7 {[%clk 0:00:15.9]} 57. Rb6 {[%clk
0:00:14.5]} 57... Ra7 {[%clk 0:00:17]} 58. Kc2 {[%clk 0:00:15.1]} 58... Nd6
{[%clk 0:00:17.3]} 59. Rf4+ {[%clk 0:00:16.1]} 59... Nf5 {[%clk 0:00:18.4]} 60.
Kb3 {[%clk 0:00:18]} 60... Bg5 {[%clk 0:00:19.1]} 61. Rg4 {[%clk 0:00:19.2]}
61... Bd8 {[%clk 0:00:19.9]} 62. Rbxg6 {[%clk 0:00:19.8]} 62... Nd4+ {[%clk
0:00:21.1]} 63. Kc4 {[%clk 0:00:20.7]} 63... Rxa4+ {[%clk 0:00:20.9]} 64. Kd3
{[%clk 0:00:21.5]} 64... Bf6 {[%clk 0:00:21.7]} 65. Rxf6+ {[%clk 0:00:21.1]}
65... Kxf6 {[%clk 0:00:23]} 66. Rxd4 {[%clk 0:00:23]} 66... Rxd4+ {[%clk
0:00:22.9]} 67. Kxd4 {[%clk 0:00:24.2]} 67... Kf5 {[%clk 0:00:24.4]} 68. Ke3
{[%clk 0:00:25.8]} 68... Ke5 {[%clk 0:00:25.8]} 69. Kf3 {[%clk 0:00:27.3]} 69...
Kf5 {[%clk 0:00:27.2]} 70. Kg3 {[%clk 0:00:29.2]} 70... Kg5 {[%clk 0:00:28.6]}
71. Kf3 {[%clk 0:00:31.1]} 71... Kf5 {[%clk 0:00:29.9]} 72. Ke3 {[%clk 0:00:33]}
72... Ke5 {[%clk 0:00:31.4]} 73. Ke2 {[%clk 0:00:34.9]} 73... Ke4 {[%clk
0:00:32.4]} 74. Kf1 {[%clk 0:00:36.8]} 74... Kf3 {[%clk 0:00:33.3]} 75. Kg1
{[%clk 0:00:38.4]} 75... Kf4 {[%clk 0:00:34.8]} 76. Kg2 {[%clk 0:00:40.3]} 76...
Kg4 {[%clk 0:00:36.2]} 77. f3+ {[%clk 0:00:41.8]} 77... Kf4 {[%clk 0:00:37.6]}
78. Kf2 {[%clk 0:00:43.7]} 78... Kf5 {[%clk 0:00:38.9]} 79. Ke3 {[%clk
0:00:45.6]} 79... Ke5 {[%clk 0:00:40.3]} 80. f4+ {[%clk 0:00:47.5]} 80... Kf5
{[%clk 0:00:41.7]} 81. Kf3 {[%clk 0:00:49.4]} 81... Kf6 {[%clk 0:00:43]} 82. Kg4
{[%clk 0:00:51.3]} 82... Kg6 {[%clk 0:00:44.4]} 83. f5+ {[%clk 0:00:53.2]} 83...
Kf6 {[%clk 0:00:45.8]} 84. Kf4 {[%clk 0:00:55.1]} 84... Kf7 {[%clk 0:00:47.2]}
85. Ke5 {[%clk 0:00:57]} 85... Ke7 {[%clk 0:00:48.6]} 86. Ke4 {[%clk 0:00:58.9]}
86... Kf7 {[%clk 0:00:48.4]} 87. Kf4 {[%clk 0:01:00.8]} 87... Kf6 {[%clk
0:00:48.4]} 88. Ke4 {[%clk 0:01:02.2]} 88... Kf7 {[%clk 0:00:48.7]} 89. Ke5
{[%clk 0:01:04.1]} 89... Ke7 {[%clk 0:00:50.1]} 90. f6+ {[%clk 0:01:05.7]} 90...
Kf7 {[%clk 0:00:51.5]} 91. Kf5 {[%clk 0:01:07.6]} 91... Kf8 {[%clk 0:00:52.2]}
92. Ke6 {[%clk 0:01:09.5]} 92... Ke8 {[%clk 0:00:53.1]} 93. Ke5 {[%clk
0:01:10.4]} 93... Kf8 {[%clk 0:00:53.9]} 94. Kf5 {[%clk 0:01:12.3]} 94... Kf7
{[%clk 0:00:54.2]} 95. Kg5 {[%clk 0:01:13.8]} 95... Kf8 {[%clk 0:00:55.3]} 96.
Kh6 {[%clk 0:01:13.6]} 96... Kf7 {[%clk 0:00:56.1]} 97. Kg5 {[%clk 0:01:15.5]}
97... Kf8 {[%clk 0:00:57.4]} 98. Kg6 {[%clk 0:01:17.4]} 98... Kg8 {[%clk
0:00:58.6]} 99. f7+ {[%clk 0:01:18]} 99... Kf8 {[%clk 0:00:59.7]} 100. Kf6
{[%clk 0:01:19.9]} 1/2-1/2

[Event "*** Titled Tuesday 3|2 Blitz"]
[Site "Chess.com"]
[Date "2016.10.04"]
[Round "9"]
[White "platy3"]
[Black "Lukianoo"]
[Result "1-0"]
[WhiteElo "2747"]
[BlackElo "2732"]
[TimeControl "180+2"]
[EndTime "12:54:58 PDT"]
[Termination "platy3 won by resignation"]

1. e4 {[%clk 0:03:02]} 1... c6 {[%clk 0:02:59.4]} 2. d4 {[%clk 0:03:01.2]} 2...
d5 {[%clk 0:02:57.6]} 3. Nc3 {[%clk 0:03:02.4]} 3... a6 {[%clk 0:02:57.9]} 4.
Nf3 {[%clk 0:02:53.2]} 4... Bg4 {[%clk 0:02:57.9]} 5. Be2 {[%clk 0:02:46.2]}
5... e6 {[%clk 0:02:58]} 6. O-O {[%clk 0:02:43.6]} 6... Nf6 {[%clk 0:02:58.4]}
7. h3 {[%clk 0:02:41.4]} 7... Bh5 {[%clk 0:02:58]} 8. e5 {[%clk 0:02:41.1]} 8...
Nfd7 {[%clk 0:02:58.2]} 9. Ng5 {[%clk 0:02:39.3]} 9... Bxe2 {[%clk 0:02:50.2]}
10. Qxe2 {[%clk 0:02:41.2]} 10... Be7 {[%clk 0:02:49.7]} 11. Qh5 {[%clk
0:02:36.4]} 11... g6 {[%clk 0:02:44.1]} 12. Qg4 {[%clk 0:02:33]} 12... h5 {[%clk
0:02:39.9]} 13. Qg3 {[%clk 0:02:31.1]} 13... Qb6 {[%clk 0:02:37.7]} 14. Ne2
{[%clk 0:02:21.8]} 14... c5 {[%clk 0:02:34.5]} 15. c3 {[%clk 0:02:23.4]} 15...
Nc6 {[%clk 0:02:27.8]} 16. Nxe6 {[%clk 0:02:19.3]} 16... h4 {[%clk 0:02:21.7]}
17. Ng7+ {[%clk 0:02:09.5]} 17... Kf8 {[%clk 0:02:19.1]} 18. Ne6+ {[%clk
0:02:10.8]} 18... Kg8 {[%clk 0:02:08.7]} 19. Qd3 {[%clk 0:02:12.3]} 19... cxd4
{[%clk 0:02:04.6]} 20. N6xd4 {[%clk 0:02:12.9]} 20... Ndxe5 {[%clk 0:02:01.9]}
21. Qc2 {[%clk 0:02:11.3]} 21... Rc8 {[%clk 0:01:58.4]} 22. Be3 {[%clk
0:02:05.3]} 22... Nc4 {[%clk 0:01:54.2]} 23. Nf4 {[%clk 0:02:01.9]} 23... Nxe3
{[%clk 0:01:51.9]} 24. fxe3 {[%clk 0:02:03.8]} 24... Nxd4 {[%clk 0:01:47.4]} 25.
exd4 {[%clk 0:02:04.8]} 25... Qxd4+ {[%clk 0:01:40.8]} 26. Kh1 {[%clk
0:01:58.8]} 26... Kg7 {[%clk 0:01:34.7]} 27. Qe2 {[%clk 0:01:47.7]} 27... Qe4
{[%clk 0:01:33.4]} 28. Qg4 {[%clk 0:01:48.6]} 28... Qf5 {[%clk 0:01:26.5]} 29.
Qxf5 {[%clk 0:01:49.9]} 29... gxf5 {[%clk 0:01:26.3]} 30. Nxd5 {[%clk
0:01:51.8]} 30... Bg5 {[%clk 0:01:23.7]} 31. Rxf5 {[%clk 0:01:52.7]} 31... Kg6
{[%clk 0:01:21.1]} 32. Raf1 {[%clk 0:01:54.2]} 32... Rhd8 {[%clk 0:01:17.1]} 33.
Re5 {[%clk 0:01:46.8]} 33... Re8 {[%clk 0:01:13.7]} 34. Nf4+ {[%clk 0:01:37.8]}
34... Kh6 {[%clk 0:01:11.4]} 35. Rf5 {[%clk 0:01:39.1]} 35... f6 {[%clk
0:01:08.5]} 36. Nd5 {[%clk 0:01:40.3]} 36... Re5 {[%clk 0:01:06.4]} 37. Rxe5
{[%clk 0:01:40.2]} 37... fxe5 {[%clk 0:01:06.8]} 38. Re1 {[%clk 0:01:34.4]}
38... Re8 {[%clk 0:01:07.8]} 39. g4 {[%clk 0:01:35.9]} 39... hxg3 {[%clk
0:01:03.7]} 40. Kg2 {[%clk 0:01:37.2]} 40... Kg6 {[%clk 0:00:59.7]} 41. Kxg3
{[%clk 0:01:34.6]} 41... Kf5 {[%clk 0:01:00.3]} 42. h4 {[%clk 0:01:36.2]} 42...
Bf4+ {[%clk 0:00:56.5]} 43. Kf3 {[%clk 0:01:31.3]} 43... e4+ {[%clk 0:00:57.8]}
44. Ke2 {[%clk 0:01:28.9]} 44... Bg3 {[%clk 0:00:59]} 45. Rf1+ {[%clk
0:01:21.9]} 45... Ke5 {[%clk 0:01:00.3]} 46. Nf6 {[%clk 0:01:23.5]} 46... Rh8
{[%clk 0:00:55.8]} 47. h5 {[%clk 0:01:24.9]} 47... Bh4 {[%clk 0:00:53.6]} 48.
Ng4+ {[%clk 0:01:26.2]} 48... Ke6 {[%clk 0:00:51.8]} 49. h6 {[%clk 0:01:27.8]}
49... Bg5 {[%clk 0:00:49.5]} 50. a4 {[%clk 0:01:18.5]} 50... b5 {[%clk
0:00:43.9]} 51. a5 {[%clk 0:01:12.9]} 51... Bd8 {[%clk 0:00:44.5]} 52. Ke3
{[%clk 0:01:08.9]} 52... Rg8 {[%clk 0:00:38.2]} 53. Nf2 {[%clk 0:01:10.3]} 53...
Bg5+ {[%clk 0:00:35.1]} 54. Kxe4 {[%clk 0:01:11.2]} 54... Bxh6 {[%clk 0:00:37]}
55. Nd3 {[%clk 0:01:08.1]} 55... Rg2 {[%clk 0:00:31.1]} 56. Re1 {[%clk
0:00:58.8]} 56... Kd6 {[%clk 0:00:28.3]} 57. Rh1 {[%clk 0:00:56.9]} 57... Re2+
{[%clk 0:00:25.1]} 58. Kf5 {[%clk 0:00:55.4]} 58... Re6 {[%clk 0:00:25.4]} 59.
Rd1 {[%clk 0:00:51.3]} 59... Ke7 {[%clk 0:00:21.4]} 60. Nc5 {[%clk 0:00:52.7]}
60... Rc6 {[%clk 0:00:19.1]} 61. Re1+ {[%clk 0:00:51.9]} 61... Kf7 {[%clk
0:00:14.7]} 62. Ne4 {[%clk 0:00:51.6]} 62... Ke7 {[%clk 0:00:13]} 63. Rh1 {[%clk
0:00:48]} 63... Kf7 {[%clk 0:00:12.7]} 64. Ke5 {[%clk 0:00:45.5]} 64... Rg6
{[%clk 0:00:11.8]} 65. b3 {[%clk 0:00:40.1]} 65... Ke7 {[%clk 0:00:12.5]} 66. c4
{[%clk 0:00:37.3]} 66... bxc4 {[%clk 0:00:13]} 67. bxc4 {[%clk 0:00:39.2]} 67...
Bg7+ {[%clk 0:00:14.6]} 68. Kd5 {[%clk 0:00:37.7]} 68... Kd7 {[%clk 0:00:15.9]}
69. c5 {[%clk 0:00:38.6]} 69... Bf8 {[%clk 0:00:15.7]} 70. Rb1 {[%clk
0:00:33.2]} 70... Kc7 {[%clk 0:00:14.9]} 71. Rf1 {[%clk 0:00:32.8]} 71... Be7
{[%clk 0:00:13.8]} 72. Rf7 {[%clk 0:00:33.5]} 72... Kd8 {[%clk 0:00:15.1]} 73.
Rh7 {[%clk 0:00:26.8]} 73... Rg1 {[%clk 0:00:12.7]} 74. Kc6 {[%clk 0:00:22.7]}
74... Bf8 {[%clk 0:00:08.6]} 75. Nd6 {[%clk 0:00:19]} 75... Bxd6 {[%clk
0:00:08.1]} 76. Rh8+ {[%clk 0:00:17.3]} 76... Ke7 {[%clk 0:00:07.9]} 77. cxd6+
{[%clk 0:00:18.1]} 77... Ke6 {[%clk 0:00:08.9]} 78. Re8+ {[%clk 0:00:18.8]}
78... Kf7 {[%clk 0:00:10]} 79. d7 {[%clk 0:00:19.8]} 79... Rc1+ {[%clk
0:00:11.6]} 80. Kb7 {[%clk 0:00:20.9]} 80... Rd1 {[%clk 0:00:12.6]} 81. d8=Q
{[%clk 0:00:21.6]} 1-0